fUST/lending_fUST_20241205
["ID","MTS","AMOUNT","RATE_DAILY","PERIOD"]
[344366590,1733381434393,-501.80129646,0.00021917,2]
[344366591,1733381434403,-563.68,0.00021917,2]
[344366594,1733381434413,-501.54970806,0.00021917,2]
[344366596,1733381434423,-510.91692376,0.00021917,2]
[344366597,1733381434432,-500.0,0.00021917,2]
[344366600,1733381434443,-500.0,0.00021917,2]
[344366602,1733381434452,-500.0,0.00021917,2]
[344366603,1733381434462,-504.61714286,0.00021917,2]
[344366606,1733381434472,-500.55126909,0.00021917,2]
[344366608,1733381434482,-500.0,0.00021917,2]
[344366610,1733381434492,-506.74664033,0.00021917,2]
[344366612,1733381434502,-500.96310589,0.00021917,2]
[344366614,1733381434511,-500.0,0.00021917,2]
[344366616,1733381434521,-576.54383352,0.00021917,2]
[344366618,1733381434531,-501.96388844,0.00021917,2]
[344366620,1733381434542,-500.0,0.00021917,2]
[344366622,1733381434553,-504.81702558,0.00021917,2]
[344366624,1733381434569,-553.974383,0.00021917,2]
[344366626,1733381434579,-501.60915099,0.00021917,2]
[344366628,1733381434590,-541.0470006,0.00021917,2]
[344366630,1733381434600,-438.98599335,0.00021917,2]
[344366632,1733381434611,-502.75691307,0.00021917,2]
[344366634,1733381434621,-500.0,0.00021917,2]
[344366636,1733381434631,-500.0,0.00021917,2]
[344366638,1733381434642,-500.0,0.00021917,2]
[344366640,1733381434652,-500.0,0.00021917,2]
[344366642,1733381434662,-500.0,0.00021917,2]
[344366644,1733381434673,-500.0,0.00021917,2]
[344366646,1733381434683,-500.0,0.00021917,2]
[344366648,1733381434693,-500.0,0.00021917,2]
[344366650,1733381434703,-500.0,0.00021917,2]
[344366652,1733381434713,-500.0,0.00021917,2]
[344366654,1733381434723,-503.02555613,0.00021917,2]
[344366656,1733381434734,-500.0,0.00021917,2]
[344366658,1733381434743,-500.0,0.00021917,2]
[344366660,1733381434753,-500.0,0.00021917,2]
[344366662,1733381434763,-500.0,0.00021917,2]
[344366664,1733381434773,-500.0,0.00021917,2]
[344366666,1733381434783,-500.0,0.00021917,2]
[344366668,1733381434793,-620.93158273,0.00021917,2]
[344366670,1733381434803,-506.73498746,0.00021917,2]
[344366679,1733381434881,-502.3571161,0.00021917,2]
[344366681,1733381434891,-506.96625525,0.00021917,2]
[344366683,1733381434901,-500.0,0.00021917,2]
[344366685,1733381434910,-500.0,0.00021917,2]
[344366687,1733381434920,-584.29627871,0.00021917,2]
[344366689,1733381434930,-348.83662953,0.00021917,2]
[344366691,1733381434940,-516.07399154,0.00021917,2]
[344366693,1733381434949,-500.0,0.00021917,2]
[344366695,1733381434959,-500.0,0.00021917,2]
[344366697,1733381434970,-151.0,0.00021917,2]
[344366699,1733381434979,-500.0,0.00021917,2]
[344366701,1733381434989,-501.99943515,0.00021917,2]
[344366703,1733381434999,-500.0,0.00021917,2]
[344366705,1733381435008,-500.0,0.00021917,2]
[344366707,1733381435018,-381.3822211,0.00021917,2]
[344366709,1733381435028,-500.0,0.00021917,2]
[344366711,1733381435038,-537.66226774,0.00021917,2]
[344366713,1733381435047,-513.02107,0.00021917,2]
[344366715,1733381435057,-502.7744345,0.00021917,2]
[344366717,1733381435067,-592.79,0.00021917,2]
[344366719,1733381435077,-174.54764,0.00021917,2]
[344366721,1733381435087,-174.54764,0.00021917,2]
[344366723,1733381435097,-174.54764,0.00021917,2]
[344366725,1733381435107,-174.54764,0.00021917,2]
[344366727,1733381435116,-500.0,0.00021917,2]
[344366729,1733381435126,-174.54764,0.00021917,2]
[344366731,1733381435136,-174.54764,0.00021917,2]
[344366733,1733381435145,-174.54764,0.00021917,2]
[344366735,1733381435155,-174.54764,0.00021917,2]
[344366737,1733381435165,-174.54764,0.00021917,2]
[344366739,1733381435175,-174.54764,0.00021917,2]
[344366741,1733381435184,-174.54764,0.00021917,2]
[344366743,1733381435193,-174.54764,0.00021917,2]
[344366745,1733381435202,-174.54764,0.00021917,2]
[344366747,1733381435212,-174.54764,0.00021917,2]
[344366749,1733381435222,-174.54764,0.00021917,2]
[344366751,1733381435232,-174.54764,0.00021917,2]
[344366753,1733381435241,-174.54764,0.00021917,2]
[344366755,1733381435250,-174.547646,0.00021917,2]
[344366757,1733381435259,-501.66660621,0.00021917,2]
[344366759,1733381435269,-503.87310113,0.00021917,2]
[344366761,1733381435279,-500.0,0.00021917,2]
[344366763,1733381435288,-502.0049032,0.00021917,2]
[344366765,1733381435297,-500.0,0.00021917,2]
[344366767,1733381435307,-151.0,0.00021917,2]
[344366769,1733381435319,-151.0,0.00021917,2]
[344366771,1733381435329,-151.0,0.00021917,2]
[344366773,1733381435338,-151.0,0.00021917,2]
[344366775,1733381435348,-151.0,0.00021917,2]
[344366777,1733381435357,-151.0,0.00021917,2]
[344366779,1733381435368,-151.0,0.00021917,2]
[344366781,1733381435378,-151.0,0.00021917,2]
[344366783,1733381435388,-151.0,0.00021917,2]
[344366785,1733381435400,-500.0,0.00021917,2]
[344366786,1733381435415,-500.0,0.00021917,2]
[344366787,1733381435437,-500.0,0.00021917,2]
[344366788,1733381435446,-500.0,0.00021917,2]
[344366789,1733381435455,-503.35563996,0.00021917,2]
[344366790,1733381435464,-500.0,0.00021917,2]
[344366791,1733381435474,-500.0,0.00021917,2]
[344366792,1733381435483,-282.35973239,0.00021917,2]
[344366793,1733381435493,-502.80309216,0.00021917,2]
[344366794,1733381435502,-500.0,0.00021917,2]
[344366795,1733381435511,-500.96946286,0.00021917,2]
[344366796,1733381435520,-501.83489639,0.00021917,2]
[344366797,1733381435529,-568.44,0.00021917,2]
[344366798,1733381435538,-500.0,0.00021917,2]
[344366799,1733381435548,-500.0,0.00021917,2]
[344366800,1733381435557,-535.86370243,0.00021917,2]
[344366801,1733381435571,-502.42223219,0.00021917,2]
[344366802,1733381435581,-501.13247711,0.00021917,2]
[344366803,1733381435590,-1000.57682757,0.00021917,2]
[344366804,1733381435599,-500.0,0.00021917,2]
[344366806,1733381435610,-500.0,0.00021917,2]
[344366808,1733381435619,-500.0,0.00021917,2]
[344366810,1733381435629,-500.0,0.00021917,2]
[344366812,1733381435639,-500.0,0.00021917,2]
[344366814,1733381435648,-500.0,0.00021917,2]
[344366816,1733381435659,-171.51733839,0.00021917,2]
[344366818,1733381435669,-500.0,0.00021917,2]
[344366820,1733381435678,-500.0,0.00021917,2]
[344366822,1733381435687,-500.0,0.00021917,2]
[344366824,1733381435697,-500.0,0.00021917,2]
[344366826,1733381435706,-503.50210119,0.00021917,2]
[344366828,1733381435715,-500.0,0.00021917,2]
[344366830,1733381435724,-530.73701566,0.00021917,2]
[344366832,1733381435734,-500.0,0.00021917,2]
[344366834,1733381435743,-500.0,0.00021917,2]
[344366836,1733381435753,-577.47233134,0.00021917,2]
[344366838,1733381435763,-500.0,0.00021917,2]
[344366839,1733381435773,-500.0,0.00021917,2]
[344366842,1733381435783,-500.0,0.00021917,2]
[344366843,1733381435793,-500.0,0.00021917,2]
[344366845,1733381435802,-503.89331945,0.00021917,2]
[344366848,1733381435812,-500.0,0.00021917,2]
[344366849,1733381435823,-500.0,0.00021917,2]
[344366851,1733381435833,-500.88416201,0.00021917,2]
[344366853,1733381435842,-500.0,0.00021917,2]
[344366855,1733381435852,-500.0,0.00021917,2]
[344366857,1733381435862,-500.0,0.00021917,2]
[344366859,1733381435871,-604.01,0.00021917,2]
[344366861,1733381435881,-500.0,0.00021917,2]
[344366864,1733381435891,-500.0,0.00021917,2]
[344366865,1733381435900,-500.0,0.00021917,2]
[344366867,1733381435910,-500.0,0.00021917,2]
[344366869,1733381435920,-500.0,0.00021917,2]
[344366871,1733381435929,-542.58234077,0.00021917,2]
[344366874,1733381435939,-500.0,0.00021917,2]
[344366875,1733381435948,-509.52448693,0.00021917,2]
[344366877,1733381435957,-182.5741817,0.00021917,2]
[344366879,1733381435967,-516.79460991,0.00021917,2]
[344366882,1733381435976,-500.0,0.00021917,2]
[344366883,1733381435986,-500.0,0.00021917,2]
[344366886,1733381435996,-500.0,0.00021917,2]
[344366888,1733381436005,-502.20293542,0.00021917,2]
[344366890,1733381436017,-500.0,0.00021917,2]
[344366892,1733381436034,-500.0,0.00021917,2]
[344366894,1733381436060,-500.0,0.00021917,2]
[344366896,1733381436070,-500.0,0.00021917,2]
[344366898,1733381436080,-547.74344791,0.00021917,2]
[344366900,1733381436090,-500.0,0.00021917,2]
[344366902,1733381436099,-151.0,0.00021917,2]
[344366904,1733381436108,-500.0,0.00021917,2]
[344366906,1733381436118,-500.0,0.00021917,2]
[344366908,1733381436127,-151.0,0.00021917,2]
[344366910,1733381436136,-151.0,0.00021917,2]
[344366912,1733381436146,-151.0,0.00021917,2]
[344366914,1733381436155,-151.0,0.00021917,2]
[344366916,1733381436165,-500.0,0.00021917,2]
[344366918,1733381436174,-500.0,0.00021917,2]
[344366926,1733381436244,-1000.0,0.00021917,5]
[344366928,1733381436254,-500.0,0.00021917,2]
[344366930,1733381436263,-500.0,0.00021917,2]
[344366932,1733381436273,-500.0,0.00021917,2]
[344366934,1733381436283,-500.0,0.00021917,2]
[344366936,1733381436292,-503.30226867,0.00021917,2]
[344366938,1733381436301,-500.0,0.00021917,2]
[344366940,1733381436310,-500.0,0.00021917,2]
[344366942,1733381436321,-500.0,0.00021917,2]
[344366944,1733381436329,-277.55370183,0.00021917,2]
[344366946,1733381436339,-500.0,0.00021917,2]
[344366948,1733381436348,-500.0,0.00021917,2]
[344366950,1733381436357,-500.0,0.00021917,2]
[344366952,1733381436366,-507.03263471,0.00021917,2]
[344366954,1733381436376,-500.0,0.00021917,2]
[344366956,1733381436385,-601.42,0.00021917,2]
[344366958,1733381436394,-500.0,0.00021917,2]
[344366960,1733381436403,-500.0,0.00021917,2]
[344366962,1733381436412,-502.52467744,0.00021917,2]
[344366964,1733381436421,-500.0,0.00021917,2]
[344366966,1733381436430,-500.0,0.00021917,2]
[344366967,1733381436439,-614.86177195,0.00021917,2]
[344366969,1733381436448,-500.0,0.00021917,2]
[344366971,1733381436458,-500.0,0.00021917,2]
[344366974,1733381436468,-500.0,0.00021917,2]
[344366976,1733381436478,-500.0,0.00021917,2]
[344366978,1733381436487,-500.0,0.00021917,2]
[344366980,1733381436497,-500.0,0.00021917,2]
[344366982,1733381436506,-500.0,0.00021917,2]
[344366984,1733381436515,-500.0,0.00021917,2]
[344366986,1733381436525,-500.0,0.00021917,2]
[344366987,1733381436534,-500.0,0.00021917,2]
[344366989,1733381436543,-500.0,0.00021917,2]
[344366991,1733381436552,-500.0,0.00021917,2]
[344366993,1733381436565,-500.0,0.00021917,2]
[344366995,1733381436575,-500.0,0.00021917,2]
[344366997,1733381436585,-501.83827085,0.00021917,2]
[344366999,1733381436595,-456.5835037,0.00021917,2]
[344367001,1733381436604,-504.79981153,0.00021917,2]
[344367003,1733381436614,-464.64106721,0.00021917,2]
[344367005,1733381436624,-507.87463647,0.00021917,2]
[344367007,1733381436633,-501.63921867,0.00021917,2]
[344367009,1733381436643,-279.54164446,0.00021917,2]
[344367011,1733381436653,-500.0,0.00021917,2]
[344367013,1733381436662,-501.78935589,0.00021917,2]
[344367015,1733381436671,-503.56570633,0.00021917,2]
[344367017,1733381436680,-500.0,0.00021917,2]
[344367019,1733381436689,-500.0,0.00021917,2]
[344367021,1733381436699,-648.7182961,0.00021917,2]
[344367023,1733381436708,-500.0,0.00021917,2]
[344367025,1733381436718,-500.0,0.00021917,2]
[344367027,1733381436728,-502.99413697,0.00021917,2]
[344367029,1733381436738,-500.0,0.00021917,2]
[344367031,1733381436748,-348.94867183,0.00021917,2]
[344367033,1733381436757,-508.68313559,0.00021917,2]
[344367035,1733381436767,-500.0,0.00021917,2]
[344367037,1733381436777,-502.69801521,0.00021917,2]
[344367039,1733381436787,-500.0,0.00021917,2]
[344367041,1733381436796,-500.0,0.00021917,2]
[344367043,1733381436805,-500.0,0.00021917,2]
[344367045,1733381436814,-511.59805022,0.00021917,2]
[344367047,1733381436825,-500.0,0.00021917,2]
[344367049,1733381436834,-500.0,0.00021917,2]
[344367051,1733381436844,-500.0,0.00021917,2]
[344367053,1733381436853,-500.0,0.00021917,2]
[344367055,1733381436863,-500.0,0.00021917,2]
[344367057,1733381436872,-500.0,0.00021917,2]
[344367059,1733381436881,-500.0,0.00021917,2]
[344367061,1733381436890,-500.0,0.00021917,2]
[344367063,1733381436899,-500.0,0.00021917,2]
[344367065,1733381436909,-500.0,0.00021917,2]
[344367067,1733381436918,-502.77454305,0.00021917,2]
[344367069,1733381436927,-500.0,0.00021917,2]
[344367071,1733381436937,-500.0,0.00021917,2]
[344367073,1733381436947,-500.0,0.00021917,2]
[344367075,1733381436956,-500.0,0.00021917,2]
[344367077,1733381436966,-500.77661538,0.00021917,2]
[344367079,1733381436975,-500.0,0.00021917,2]
[344367081,1733381436984,-507.40322178,0.00021917,2]
[344367083,1733381436993,-544.47,0.00021917,2]
[344367085,1733381437003,-500.0,0.00021917,2]
[344367087,1733381437012,-500.0,0.00021917,2]
[344367089,1733381437021,-500.0,0.00021917,2]
[344367091,1733381437030,-500.0,0.00021917,2]
[344367093,1733381437039,-519.38225147,0.00021917,2]
[344367095,1733381437048,-500.0,0.00021917,2]
[344367097,1733381437058,-500.0,0.00021917,2]
[344367098,1733381437069,-507.85007512,0.00021917,2]
[344367099,1733381437078,-501.56549851,0.00021917,2]
[344367101,1733381437088,-500.0,0.00021917,2]
[344367103,1733381437098,-500.0,0.00021917,2]
[344367105,1733381437108,-500.0,0.00021917,2]
[344367107,1733381437118,-502.99300384,0.00021917,2]
[344367109,1733381437129,-500.0,0.00021917,2]
[344367111,1733381437140,-500.0,0.00021917,2]
[344367113,1733381437150,-417.55446422,0.00021917,2]
[344367115,1733381437159,-500.0,0.00021917,2]
[344367117,1733381437169,-506.61764729,0.00021917,2]
[344367119,1733381437179,-500.0,0.00021917,2]
[344367120,1733381437188,-500.0,0.00021917,2]
[344367122,1733381437198,-500.0,0.00021917,2]
[344367125,1733381437207,-500.0,0.00021917,2]
[344367127,1733381437217,-500.0,0.00021917,2]
[344367128,1733381437228,-501.49631096,0.00021917,2]
[344367130,1733381437237,-510.14227432,0.00021917,2]
[344367133,1733381437246,-500.0,0.00021917,2]
[344367134,1733381437255,-500.0,0.00021917,2]
[344367137,1733381437265,-500.0,0.00021917,2]
[344367138,1733381437275,-500.0,0.00021917,2]
[344367141,1733381437284,-500.0,0.00021917,2]
[344367143,1733381437294,-501.36204947,0.00021917,2]
[344367145,1733381437303,-507.00558121,0.00021917,2]
[344367147,1733381437313,-500.0,0.00021917,2]
[344367149,1733381437324,-500.0,0.00021917,2]
[344367151,1733381437333,-500.0,0.00021917,2]
[344367153,1733381437344,-500.0,0.00021917,2]
[344367155,1733381437352,-500.0,0.00021917,2]
[344367157,1733381437362,-500.0,0.00021917,2]
[344367158,1733381437371,-500.0,0.00021917,2]
[344367167,1733381437437,-500.0,0.00021917,2]
[344367169,1733381437453,-503.15377293,0.00021917,2]
[344367171,1733381437463,-500.0,0.00021917,2]
[344367173,1733381437472,-500.0,0.00021917,2]
[344367176,1733381437481,-503.36026499,0.00021917,2]
[344367177,1733381437490,-500.0,0.00021917,2]
[344367178,1733381437499,-500.0,0.00021917,2]
[344367180,1733381437509,-500.0,0.00021917,2]
[344367182,1733381437519,-865.56,0.00021917,2]
[344367184,1733381437528,-500.0,0.00021917,2]
[344367186,1733381437538,-500.0,0.00021917,2]
[344367188,1733381437547,-255.6401866,0.00021917,2]
[344367190,1733381437556,-500.0,0.00021917,2]
[344367191,1733381437569,-500.0,0.00021917,2]
[344367192,1733381437579,-507.69903751,0.00021917,2]
[344367193,1733381437588,-500.0,0.00021917,2]
[344367194,1733381437598,-500.0,0.00021917,2]
[344367195,1733381437609,-500.0,0.00021917,2]
[344367196,1733381437618,-282.47783712,0.00021917,2]
[344367197,1733381437628,-500.0,0.00021917,2]
[344367198,1733381437638,-191.66709854,0.00021917,2]
[344367199,1733381437648,-500.0,0.00021917,2]
[344367200,1733381437657,-509.6926477,0.00021917,2]
[344367201,1733381437666,-500.0,0.00021917,2]
[344367202,1733381437676,-505.46015637,0.00021917,2]
[344367203,1733381437685,-500.0,0.00021917,2]
[344367204,1733381437695,-500.0,0.00021917,2]
[344367205,1733381437704,-500.0,0.00021917,2]
[344367206,1733381437714,-500.0,0.00021917,2]
[344367207,1733381437723,-500.0,0.00021917,2]
[344367208,1733381437732,-500.0,0.00021917,2]
[344367209,1733381437741,-500.0,0.00021917,2]
[344367210,1733381437750,-500.0,0.00021917,2]
[344367211,1733381437760,-500.0,0.00021917,2]
[344367212,1733381437770,-500.0,0.00021917,2]
[344367213,1733381437779,-500.0,0.00021917,2]
[344367214,1733381437789,-560.62267039,0.00021917,2]
[344367215,1733381437799,-169.95658278,0.00021917,2]
[344367216,1733381437808,-502.41959312,0.00021917,2]
[344367217,1733381437818,-504.37178962,0.00021917,2]
[344367218,1733381437828,-500.0,0.00021917,2]
[344367219,1733381437837,-503.94757147,0.00021917,2]
[344367220,1733381437846,-500.0,0.00021917,2]
[344367221,1733381437856,-512.94305819,0.00021917,2]
[344367222,1733381437865,-500.0,0.00021917,2]
[344367223,1733381437874,-500.0,0.00021917,2]
[344367224,1733381437883,-500.0,0.00021917,2]
[344367225,1733381437893,-500.0,0.00021917,2]
[344367226,1733381437902,-500.0,0.00021917,2]
[344367227,1733381437911,-517.68104949,0.00021917,2]
[344367228,1733381437920,-432.94769451,0.00021917,2]
[344367229,1733381437930,-502.2110857,0.00021917,2]
[344367230,1733381437939,-500.0,0.00021917,2]
[344367231,1733381437949,-500.0,0.00021917,2]
[344367232,1733381437958,-500.0,0.00021917,2]
[344367233,1733381437968,-699.59,0.00021917,2]
[344367234,1733381437977,-500.0,0.00021917,2]
[344367235,1733381437986,-500.0,0.00021917,2]
[344367236,1733381437996,-500.0,0.00021917,2]
[344367237,1733381438005,-500.0,0.00021917,2]
[344367238,1733381438014,-500.0,0.00021917,2]
[344367239,1733381438025,-500.0,0.00021917,2]
[344367240,1733381438034,-500.0,0.00021917,2]
[344367241,1733381438044,-500.0,0.00021917,2]
[344367243,1733381438053,-500.0,0.00021917,2]
[344367245,1733381438063,-500.0,0.00021917,2]
[344367247,1733381438074,-518.61029971,0.00021917,2]
[344367249,1733381438084,-500.0,0.00021917,2]
[344367251,1733381438094,-531.26,0.00021917,2]
[344367253,1733381438104,-505.57492005,0.00021917,2]
[344367255,1733381438114,-500.0,0.00021917,2]
[344367257,1733381438124,-500.0,0.00021917,2]
[344367259,1733381438133,-506.66833609,0.00021917,2]
[344367262,1733381438143,-151.0,0.00021917,2]
[344367264,1733381438152,-151.0,0.00021917,2]
[344367266,1733381438162,-151.0,0.00021917,2]
[344367268,1733381438171,-694.834761,0.00021917,2]
[344367270,1733381438181,-151.0,0.00021917,2]
[344367272,1733381438190,-694.834761,0.00021917,2]
[344367273,1733381438199,-206.087271,0.00021917,2]
[344367274,1733381438208,-694.834761,0.00021917,2]
[344367276,1733381438217,-500.0,0.00021917,2]
[344367278,1733381438227,-694.834761,0.00021917,2]
[344367279,1733381438236,-694.834761,0.00021917,2]
[344367281,1733381438245,-694.834761,0.00021917,2]
[344367282,1733381438254,-694.834761,0.00021917,2]
[344367283,1733381438263,-694.834761,0.00021917,2]
[344367284,1733381438273,-613.01634193,0.00021917,2]
[344367285,1733381438282,-694.834761,0.00021917,2]
[344367286,1733381438292,-500.0,0.00021917,2]
[344367287,1733381438301,-694.834761,0.00021917,2]
[344367288,1733381438310,-694.834761,0.00021917,2]
[344367289,1733381438322,-500.0,0.00021917,2]
[344367290,1733381438331,-694.834761,0.00021917,2]
[344367291,1733381438341,-694.834761,0.00021917,2]
[344367292,1733381438350,-694.834761,0.00021917,2]
[344367293,1733381438361,-694.834761,0.00021917,2]
[344367294,1733381438370,-694.83476,0.00021917,2]
[344367295,1733381438380,-500.0,0.00021917,2]
[344367296,1733381438389,-506.45391553,0.00021917,2]
[344367297,1733381438398,-503.44572064,0.00021917,2]
[344367298,1733381438408,-500.0,0.00021917,2]
[344367299,1733381438419,-511.23624809,0.00021917,2]
[344367300,1733381438428,-506.06231842,0.00021917,2]
[344367301,1733381438445,-500.0,0.00021917,2]
[344367302,1733381438454,-414.67738972,0.00021917,2]
[344367303,1733381438464,-500.0,0.00021917,2]
[344367304,1733381438473,-194.91888513,0.00021917,2]
[344367305,1733381438484,-502.77936736,0.00021917,2]
[344367306,1733381438495,-151.0,0.00021917,2]
[344367307,1733381438571,-151.0,0.00021917,2]
[344367308,1733381438581,-500.0,0.00021917,2]
[344367309,1733381438591,-500.0,0.00021917,2]
[344367310,1733381438600,-500.0,0.00021917,2]
[344367311,1733381438610,-500.0,0.00021917,2]
[344367312,1733381438620,-500.0,0.00021917,2]
[344367313,1733381438629,-500.0,0.00021917,2]
[344367314,1733381438638,-500.0,0.00021917,2]
[344367315,1733381438649,-500.0,0.00021917,2]
[344367316,1733381438660,-500.0,0.00021917,2]
[344367317,1733381438670,-500.0,0.00021917,2]
[344367318,1733381438679,-246.44937471,0.00021917,2]
[344367319,1733381438688,-500.0,0.00021917,2]
[344367320,1733381438697,-500.0,0.00021917,2]
[344367321,1733381438707,-9592.93,0.00021917,2]
[344367322,1733381438716,-618.2769747,0.00021917,2]
[344367323,1733381438726,-505.49417212,0.00021917,2]
[344367324,1733381438736,-378.1530291,0.00021917,2]
[344367325,1733381438746,-503.56413199,0.00021917,2]
[344367326,1733381438755,-500.0,0.00021917,2]
[344367327,1733381438764,-500.0,0.00021917,2]
[344367328,1733381438774,-504.42980118,0.00021917,2]
[344367329,1733381438783,-500.0,0.00021917,2]
[344367330,1733381438792,-503.75032391,0.00021917,2]
[344367331,1733381438802,-500.0,0.00021917,2]
[344367332,1733381438811,-500.0,0.00021917,2]
[344367333,1733381438822,-953.45,0.00021917,2]
[344367334,1733381438832,-534.89,0.00021917,2]
[344367335,1733381438841,-500.0,0.00021917,2]
[344367336,1733381438851,-237.94146452,0.00021917,2]
[344367337,1733381438860,-500.0,0.00021917,2]
[344367338,1733381438869,-508.23018506,0.00021917,2]
[344367339,1733381438879,-505.92346773,0.00021917,2]
[344367340,1733381438888,-500.0,0.00021917,2]
[344367341,1733381438897,-500.0,0.00021917,2]
[344367342,1733381438907,-151.0,0.00021917,2]
[344367343,1733381438916,-151.0,0.00021917,2]
[344367344,1733381438926,-151.0,0.00021917,2]
[344367345,1733381438936,-500.0,0.00021917,2]
[344367346,1733381438945,-506.49189555,0.00021917,2]
[344367347,1733381438955,-151.0,0.00021917,2]
[344367348,1733381438964,-151.0,0.00021917,2]
[344367349,1733381438974,-652.9,0.00021917,2]
[344367350,1733381438985,-151.0,0.00021917,2]
[344367351,1733381438995,-500.0,0.00021917,2]
[344367352,1733381439004,-500.0,0.00021917,2]
[344367353,1733381439014,-151.0,0.00021917,2]
[344367354,1733381439023,-151.0,0.00021917,2]
[344367355,1733381439032,-500.0,0.00021917,2]
[344367356,1733381439042,-500.0,0.00021917,2]
[344367357,1733381439051,-500.0,0.00021917,2]
[344367358,1733381439061,-500.0,0.00021917,2]
[344367359,1733381439072,-500.0,0.00021917,2]
[344367360,1733381439081,-500.0,0.00021917,2]
[344367361,1733381439091,-500.0,0.00021917,2]
[344367362,1733381439100,-500.0,0.00021917,2]
[344367363,1733381439110,-500.0,0.00021917,2]
[344367364,1733381439119,-500.0,0.00021917,2]
[344367365,1733381439130,-501.16327428,0.00021917,2]
[344367366,1733381439140,-500.0,0.00021917,2]
[344367367,1733381439150,-200.0,0.00021917,2]
[344367368,1733381439159,-500.0,0.00021917,2]
[344367369,1733381439169,-503.87248444,0.00021917,2]
[344367370,1733381439178,-500.0,0.00021917,2]
[344367371,1733381439187,-500.0,0.00021917,2]
[344367372,1733381439197,-500.0,0.00021917,2]
[344367373,1733381439206,-500.0,0.00021917,2]
[344367374,1733381439216,-500.98616635,0.00021917,2]
[344367375,1733381439226,-416.992768,0.00021917,2]
[344367376,1733381439235,-416.992768,0.00021917,2]
[344367377,1733381439245,-500.0,0.00021917,2]
[344367378,1733381439254,-501.53031967,0.00021917,2]
[344367379,1733381439264,-416.992768,0.00021917,2]
[344367380,1733381439273,-416.992768,0.00021917,2]
[344367381,1733381439283,-504.8199287,0.00021917,2]
[344367382,1733381439292,-503.09763676,0.00021917,2]
[344367383,1733381439302,-500.0,0.00021917,2]
[344367384,1733381439311,-416.992768,0.00021917,2]
[344367385,1733381439323,-416.992768,0.00021917,2]
[344367386,1733381439332,-500.0,0.00021917,2]
[344367387,1733381439342,-416.992768,0.00021917,2]
[344367388,1733381439351,-890.29,0.00021917,2]
[344367389,1733381439360,-416.992768,0.00021917,2]
[344367390,1733381439369,-500.0,0.00021917,2]
[344367391,1733381439379,-502.74376141,0.00021917,2]
[344367392,1733381439388,-416.992768,0.00021917,2]
[344367393,1733381439398,-416.992768,0.00021917,2]
[344367394,1733381439408,-9903.48,0.00021917,2]
[344367395,1733381439417,-416.992768,0.00021917,2]
[344367396,1733381439428,-416.992768,0.00021917,2]
[344367397,1733381439437,-416.992768,0.00021917,2]
[344367398,1733381439446,-416.992768,0.00021917,2]
[344367399,1733381439456,-500.0,0.00021917,2]
[344367400,1733381439466,-416.992768,0.00021917,2]
[344367401,1733381439475,-416.992774,0.00021917,2]
[344367402,1733381439484,-500.0,0.00021917,2]
[344367403,1733381439494,-500.0,0.00021917,2]
[344367404,1733381439504,-500.0,0.00021917,2]
[344367405,1733381439513,-1983.27,0.00021917,2]
[344367406,1733381439523,-500.65707517,0.00021917,2]